Cogmind - Beta 13 @@@ ROGUE MODE // 2024.04.06 @ 00:49:50 Player: MasterLemons Result: Destroyed by J2-3HM(R) with Subdweller Machine Gun Performance ------------- Evolutions (0) 0 Regions Visited (3) 600 Robots Destroyed (20) 100 Value Destroyed (360) 360 Prototype IDs (4) 80 Alien Tech Used (0) 0 Bonus (0) 0 TOTAL SCORE: 1140 Bonus ------- None Cogmind --------- Core Integrity 0/250 Matter 236/300 Energy 280/280 System Corruption 1% Temperature Cool (0) Movement Treading (320) Ox2 Location -10/Subcaves Parts ------- > --- POWER (1) -------- Heavy Ion Engine > --- PROPULSION (2) --- Light Treads (fused) Light Treads > --- UTILITY (2) ------ Huge Storage Unit Experimental Sensor Array > --- WEAPON (2) ------- Heavy Assault Rifle Grenade Launcher > --- INVENTORY (25) --- Heavy Ion Engine Heavy Ion Engine Heavy Ion Engine Light Nuclear Core Light Treads Light Treads Aluminum Leg Cooling System Terrain Scanner Terrain Scan Processor Targeting Computer Light Armor Plating EM Pulse Gun Small Laser Beam Rifle Particle Gun Light Assault Rifle Heavy Assault Rifle Grenade Launcher Grenade Launcher Peak State ------------ > --- POWER ------------ Heavy Ion Engine > --- PROPULSION ------- Light Treads Light Treads > --- UTILITY ---------- Huge Storage Unit Experimental Sensor Array > --- WEAPON ----------- Heavy Assault Rifle Heavy Assault Rifle > --- INVENTORY -------- Heavy Ion Engine Heavy Ion Engine Heavy Ion Engine Light Nuclear Core Light Treads Light Treads Aluminum Leg Cooling System Terrain Scanner Terrain Scan Processor Targeting Computer Light Armor Plating EM Pulse Gun Small Laser Beam Rifle Light Assault Rifle Grenade Launcher Grenade Launcher Grenade Launcher [Rating: 22] Favorites ----------- Power Heavy Ion Engine Engine Heavy Ion Engine Propulsion Light Treads Treads Light Treads Leg Aluminum Leg Utility Huge Storage Unit Device Experimental Sensor Array Storage Huge Storage Unit Weapon Light Assault Rifle Ballistic Gun Light Assault Rifle Launcher Grenade Launcher Build | -11 -10 -10 -10 ------- Run | Yrd Mat Min Sub Slots Evolved . | . . . . Power . | . . . . Propulsion . | . . . . Utility . | . . . . Weapon . | . . . . Parts Attached 19 | 6 7 4 2 Power 2 | 1 1 . . Engine 2 | 1 1 . . Core . | . . . . Reactor . | . . . . Propulsion 4 | 2 2 . . Treads 2 | . 2 . . Leg 2 | 2 . . . Wheel . | . . . . Hover . | . . . . Flight . | . . . . Utility 4 | 1 2 1 . Device 2 | . 1 1 . Storage 2 | 1 1 . . Processor . | . . . . Hackware . | . . . . Protection . | . . . . Artifact . | . . . . Weapon 9 | 2 2 3 2 Energy Gun . | . . . . Energy Cannon . | . . . . Ballistic Gun 7 | 2 2 2 1 Ballistic Cannon . | . . . . Launcher 2 | . . 1 1 Special Weapon . | . . . . Impact Weapon . | . . . . Slashing Weapon . | . . . . Piercing Weapon . | . . . . Special Melee Weapon . | . . . . Unidentified Prototypes 2 | . 1 1 . Parts Lost . | . . . . Power . | . . . . Propulsion . | . . . . Utility . | . . . . Weapon . | . . . . Highest Loss Streak . | . . . . To Critical Strikes . | . . . . Average Slot Usage (%) 99 | . 99 100 100 Engine 14 | . 14 14 14 Treads 25 | . 19 28 28 Leg 2 | . 8 . . Device 13 | . 13 14 14 Storage 14 | . 14 14 14 Ballistic Gun 27 | . 28 27 14 Naked Turns . | . . . . Heaviest Build 95 | 10 91 95 95 Greatest Support 40 | 20 40 40 40 Greatest Overweight (x) 2 | . 2 2 2 Average Overweight (x) 1 | . . 2 2 Largest Inventory Capacity 25 | 8 25 25 25 Average Capacity 21 | 6 14 25 25 Most Carried 20 | 5 9 20 20 Average Carried 13 | 3 7 15 20 Final Capacity 25 | 8 25 25 25 Final Carried 20 | 4 9 20 20 Class Distribution -------------------- 100% | Mutant Dominant Class ---------------- Mutant | -10/Materials Mutant | -10/Mines Mutant | -10/Subcaves Resources | -11 -10 -10 -10 ----------- Run | Yrd Mat Min Sub Matter Collected 497 | 252 124 100 21 Remotely . | . . . . Salvage Created 503 | . 238 234 31 Parts 44 | . 25 16 3 Haulers Intercepted . | . . . . Recyclers Shooed 1 | . . 1 . Parts Field Recycled . | . . . . Retrieved Matter . | . . . . Parts Self-Destructed . | . . . . Prevented . | . . . . Kills | -11 -10 -10 -10 ------- Run | Yrd Mat Min Sub Combat Hostiles Destroyed 17 | . 10 6 1 Guns 16 | . 10 6 . AOE 1 | . . . 1 Classes Destroyed 6 | . 3 2 1 Worker 1 | . 1 . . Tunneler 1 | . . 1 . Recycler 1 | . . 1 . Swarmer 11 | . 8 3 . Grunt 5 | . 2 3 . Subdweller 1 | . . . 1 Best Kill Streak 4 | . 4 3 1 Combat Bots Only 4 | . 4 3 1 Max Kills in Single Turn 1 | . 1 1 1 Gunslinging . | . . . . Exploded 1 | . . . 1 Melee . | . . . . Uniques/NPCs Destroyed . | . . . . Combat | -11 -10 -10 -10 -------- Run | Yrd Mat Min Sub Hostile Shots Fired 94 | . 57 28 9 Missed 26 | . 18 4 4 Damage Taken 744 | . 332 294 118 Core 260 | . 81 106 73 Absorbed by Shields . | . . . . Core Remaining (%) 100 | 100 . . . Volleys Fired 47 | . 25 19 3 Largest 2 | . 2 2 2 Hottest 53 | . 40 46 53 Shots Fired 94 | . 50 38 6 Gun 90 | . 50 37 3 Cannon . | . . . . Launcher 4 | . . 1 3 Special . | . . . . Kinetic 90 | . 50 37 3 Thermal . | . . . . Explosive 4 | . . 1 3 Electromagnetic . | . . . . Robot Hit Streak 9 | . 9 9 3 Robot Miss Streak 3 | . 3 3 . Penetration Max . | . . . . Secondary Targets 4 | . 4 . . Max Gunslinging Chain 1 | . 1 . . Shots Hit Robots 54 | . 26 26 2 Core Hits 35 | . 17 15 3 Critical Kills . | . . . . Critical Parts Destroyed . | . . . . Critical Strikes . | . . . . Melee Attacks . | . . . . Impact . | . . . . Slashing . | . . . . Piercing . | . . . . Sneak Attacks . | . . . . Combat Hostiles . | . . . . Follow-up Attacks . | . . . . Damage Inflicted 710 | . 225 312 173 Guns 511 | . 225 272 14 Cannons . | . . . . Explosions 199 | . . 40 159 Melee . | . . . . Ramming . | . . . . Kinetic 511 | . 225 272 14 Thermal . | . . . . Explosive 199 | . . 40 159 Electromagnetic . | . . . . Impact . | . . . . Slashing . | . . . . Piercing . | . . . . Highest Corruption 1 | . 1 1 1 Average Corruption 1 | . 1 1 1 Corruption Purged . | . . . . Corruption Blocked . | . . . . Effects 18 | . 5 13 . Message Errors 2 | . . 2 . Matter Fused 2 | . . 2 . Heat Flow Errors 2 | . . 2 . Energy Discharges 5 | . 2 3 . Parts Fused 1 | . . 1 . Data Loss (minor) 2 | . 1 1 . Data Loss (major) 2 | . 2 . . Misfires 1 | . . 1 . Alerts 1 | . . 1 . Overload Shots . | . . . . Overflow Damage . | . . . . Projectiles . | . . . . Explosions . | . . . . Melee . | . . . . Knockbacks . | . . . . Impact . | . . . . Kinetic . | . . . . Secondary . | . . . . Self-Inflicted Damage . | . . . . Shots . | . . . . Rammed . | . . . . Targets Rammed . | . . . . Kicked . | . . . . Crushed . | . . . . Highest Temperature 160 | . 8 160 . Average Temperature 22 | . 3 31 . Received Heat Transfer 204 | . 42 162 . Siege Activations . | . . . . Robots Corrupted . | . . . . Combat Hostiles . | . . . . Parts Fried . | . . . . Impact Corruptions . | . . . . Robots Melted . | . . . . Combat Hostiles . | . . . . Parts Melted . | . . . . Heat Transferred . | . . . . Parts Sabotaged . | . . . . Parts Stolen . | . . . . Parts Stripped . | . . . . Power Chain Reactions . | . . . . Alert | -11 -10 -10 -10 ------- Run | Yrd Mat Min Sub Peak Influence 180 | . 180 171 . Initial 46 | . . 46 . Average 40 | . 91 21 . Maximum Alert Level . | . . . . Low Security (%) 100 | 100 100 100 . Level 1 . | . . . . Level 2 . | . . . . Level 3 . | . . . . Level 4 . | . . . . Level 5 . | . . . . High Security . | . . . . Max Security . | . . . . Squads Dispatched 1 | . 1 . . Investigation . | . . . . Extermination . | . . . . Reinforcement 1 | . 1 . . Assault . | . . . . Garrison . | . . . . Intercept . | . . . . Searches Triggered . | . . . . Construction Impeded . | . . . . Haulers Reinforced . | . . . . Active Scanning Responses . | . . . . Cargo Convoy Interrupts . | . . . . Stealth | -11 -10 -10 -10 --------- Run | Yrd Mat Min Sub Distress Signals . | . . . . Communications Jammed . | . . . . Distress Signals . | . . . . Times Spotted 31 | . 20 8 3 Peak Tracking Total 5 | . 5 2 2 Tactical Retreats 2 | . 1 1 . Traps | -11 -10 -10 -10 ------- Run | Yrd Mat Min Sub Traps Triggered 1 | . 1 . . Indirectly . | . . . . Trap Hack Attempts . | . . . . Triggered . | . . . . Disarmed 4 | . 4 . . Reprogrammed . | . . . . Reused . | . . . . Traps Extracted . | . . . . Installed . | . . . . Triggered . | . . . . Machines | -11 -10 -10 -10 ---------- Run | Yrd Mat Min Sub Machines Disabled . | . . . . Max in Single Turn . | . . . . Machines Repaired . | . . . . Machines Dismantled . | . . . . Machines Sabotaged . | . . . . Overloaded Fab Kills . | . . . . Hacking | -11 -10 -10 -10 --------- Run | Yrd Mat Min Sub Machines Accessed 4 | . 4 . . Terminals 3 | . 3 . . Fabricators . | . . . . Repair Stations . | . . . . Recycling Units 1 | . 1 . . Scanalyzers . | . . . . Garrison Access . | . . . . Total Hacks 11 | . 11 . . Successful 5 | . 5 . . Failed 6 | . 6 . . Catastrophic 1 | . 1 . . Database Lockouts . | . . . . Manual . | . . . . Terminals 9 | . 9 . . Fabricators . | . . . . Repair Stations . | . . . . Recycling Units 2 | . 2 . . Scanalyzers . | . . . . Garrison Access . | . . . . Terminal Hacks 5 | . 5 . . Prototype ID Bank 1 | . 1 . . Alert Level 1 | . 1 . . Unreport Threat 1 | . 1 . . Disarm Traps 1 | . 1 . . Zone Layout 1 | . 1 . . Fabricator Hacks . | . . . . Repair Station Hacks . | . . . . Recycling Unit Hacks . | . . . . Scanalyzer . | . . . . Garrison Access Hacks . | . . . . Unauthorized Hacks . | . . . . Terminals . | . . . . Fabricators . | . . . . Repair Stations . | . . . . Recycling Units . | . . . . Scanalyzers . | . . . . Garrison Access . | . . . . Data Cores Recovered . | . . . . Used . | . . . . Hacking Detections 3 | . 3 . . Full Trace Events 2 | . 2 . . Feedback Events . | . . . . Feedback Blocked . | . . . . Robot Schematics Acquired . | . . . . Robots Built . | . . . . Authchips . | . . . . Time . | . . . . Total Robot Build Rating . | . . . . Part Schematics Acquired . | . . . . Parts Built . | . . . . Authchips . | . . . . Time . | . . . . Total Part Build Rating . | . . . . Parts Repaired . | . . . . Time . | . . . . Parts Recycled . | . . . . Recycled Matter . | . . . . Retrieved Matter . | . . . . Retrieved Components . | . . . . Parts Scanalyzed . | . . . . Part Schematics Acquired . | . . . . Parts Damaged . | . . . . Bothacking | -11 -10 -10 -10 ------------ Run | Yrd Mat Min Sub Used RIF Installer . | . . . . Robots Hacked . | . . . . Non-combat . | . . . . Combat . | . . . . Robot Hacks Applied . | . . . . Relay Couplers Released . | . . . . Fabnet Peak Effective % . | . . . . Robots Rewired . | . . . . Allies Hacked . | . . . . Hacks Repelled . | . . . . Allies | -11 -10 -10 -10 -------- Run | Yrd Mat Min Sub Total Allies . | . . . . Largest Group . | . . . . Highest-Rated Group . | . . . . Highest-Rated Ally . | . . . . Total Orders . | . . . . Ally Attacks . | . . . . Total Damage . | . . . . Kills . | . . . . Allies Corrupted . | . . . . Allies Melted . | . . . . Intel | -11 -10 -10 -10 ------- Run | Yrd Mat Min Sub Robot Analysis Total . | . . . . Derelict Logs Recovered 2 | . . 2 . Drone Launches . | . . . . Drone Recoveries . | . . . . Exploration | -11 -10 -10 -10 ------------- Run | Yrd Mat Min Sub Turns Passed 2659 | 63 719 1857 20 Spaces Moved 911 | 47 306 555 3 Core 12 | 12 . . . Treads 723 | . 165 555 3 Legs 176 | 35 141 . . Wheels . | . . . . Hover . | . . . . Flight . | . . . . Fastest Speed 50 | 50 120 320 320 Average Speed 263 | 102 184 320 320 Slowest Speed 320 | 120 320 320 320 Overloaded Moves . | . . . . Propulsion Burnouts . | . . . . Robots Hopped . | . . . . Cave-ins Triggered . | . . . . Exploration Rate (%) 33 | 4 50 80 1 Regions Visited 3 Branch Regions 2 Pre-discovered Areas . | . . . . Known Exits Taken 1 | . . 1 . Unknown Exits Taken 2 | 1 1 . . Scrap Searched 1 | . . 1 . Spaces Dug . | . . . . Terrain Destroyed 14 | . . 5 9 Melee . | . . . . Projectile . | . . . . AOE 14 | . . 5 9 Terrain Rammed . | . . . . Walls Destroyed . | . . . . Machines Disabled . | . . . . Actions | -11 -10 -10 -10 --------- Run | Yrd Mat Min Sub Total 1100 | 62 424 606 8 Wait 81 | . 67 14 . Move 908 | 46 305 554 3 Hop . | . . . . Pick Up 35 | 10 12 13 . Fast Attach . | . . . . Attach 9 | 6 1 2 . Detach . | . . . . Swap 10 | . 6 2 2 Drop 10 | . 8 2 . Fire 47 | . 25 19 3 Melee . | . . . . Ram . | . . . . Kick . | . . . . Crush . | . . . . Escape Stasis . | . . . . Rewire . | . . . . Trap . | . . . . Miscellaneous . | . . . . Route ------- -11/Scrapyard -10/Materials (discovered 2 exits: [*Mat] / [*Min]) -10/Mines (discovered 3 exits: [*Mat x2] / *Sub) -10/Subcaves History --------- Turn | Location | Event 2 | -11/Scrapyard | Met Revision 17 8 | -11/Scrapyard | Discovered new exit (range 15) 64 | -11/Scrapyard | Entered Materials 257 | -10/Materials | Discovered new exit (range 12) 322 | -10/Materials | Build established: Mutant 760 | -10/Materials | Discovered new exit (range 6) 783 | -10/Materials | Entered Mines 987 | -10/Mines | Core integrity fell below 50% 1082 | -10/Mines | Discovered new exit (range 8) 1170 | -10/Mines | Found a damaged Exp. Sensor Array with a note attached 1176 | -10/Mines | Found Prototype Device 1177 | -10/Mines | Identified Exp. Sensor Array 1505 | -10/Mines | Identified exit to Subcaves 1569 | -10/Mines | Learned Materials terminal intel 1678 | -10/Mines | Joined a pair of Derelicts in attacking an 0b10 outpost 1939 | -10/Mines | YI-UF0 nonchalantly dropped a Grenade Launcher on the ground 1950 | -10/Mines | Found a hidden stash of uninstalled traps 2465 | -10/Mines | Discovered new exit (range 15) 2640 | -10/Mines | Entered Subcaves 2653 | -10/Subcaves | Core integrity fell below 20% 2660 | -10/Subcaves | Destroyed by J2-3HM(R) with Subdweller Machine Gun Last Messages --------------- 02567_ T-07 Excavator is excavating. 02578_ The unstable cave ceiling collapses. 02613_ T-07 Excavator destroyed. 02617_ U-05 Engineer lays Concrete. 02618_ The unstable cave ceiling collapses. 02618_ U-05 Engineer lays Concrete. 02619_ U-05 Engineer builds a Wall. 02623_ The unstable cave ceiling collapses. 02624_ U-05 Engineer builds a Wall. 02628_ U-05 Engineer lays Concrete. 02631_ U-05 Engineer builds a Wall. 02635_ U-05 Engineer lays Concrete. LOCATION=SUBCAVES AMBIENT_HEAT=-10 GOAL=ESCAPE 02641_ Acquired 8 matter. 02645_ Acquired 13 matter. 02653_ QO-LF5(R) destroyed. 02655_ Subatomizers dissect the Sub. Machine Gun. J2-3HM(R) emerges from concealment. Map ----- +----------------------------------------------------+ | ?????????????????????????????????????????????????? | | ?????????????????????????????????????????????????? | | ?????????????????????????????????????????????????? | | ?????????????????????????????????????????????????? | | ?????????????????????????????????????????????????? | | ?????????????????????????????????????????????????? | | ?????????????????????????????????????????????????? | | ?????????????????????????????????????????????????? | | ?????????????????????????????????????????????????? | | ?????????????????????????????????????????????????? | | ?????????????????????????????????????????????????? | | ?????????????????????????????????????????????????? | | ?????????????????????????????????????????????????? | | ?????????????????????????????????????????????????? | | ?????????????????????????????????????????????????? | | ?????????????????????????????????????????????????? | | ?????????????##??????????????????????????????????? | | ????????????? ?????????????????????????????????? | | ???????????? ???????????????????????????????? | | ???????????? RR ????????###??????? #???????? | | ???????????? ??????## ##???? % ????????? | | ??????????? [ ???### ### #???????????? | | ??????????? !%* ### # #???????????? | | ??????????? #???????????? | | ????????????????# # # # ##???????????? | | ????????????????# @ #?#????????????????? | | ????????????????### ## #??????????????????? | | ??????????????????#???### #?????????????????? | | ????????????????????????## ###?????????????????? | | ?????????????????????????## ##???????????????????? | | ??????????????????????????###????????????????????? | | ?????????????????????????????????????????????????? | | ?????????????????????????????????????????????????? | | ?????????????????????????????????????????????????? | | ?????????????????????????????????????????????????? | | ?????????????????????????????????????????????????? | | ?????????????????????????????????????????????????? | | ?????????????????????????????????????????????????? | | ?????????????????????????????????????????????????? | | ?????????????????????????????????????????????????? | | ?????????????????????????????????????????????????? | | ?????????????????????????????????????????????????? | | ?????????????????????????????????????????????????? | | ?????????????????????????????????????????????????? | | ?????????????????????????????????????????????????? | | ?????????????????????????????????????????????????? | | ?????????????????????????????????????????????????? | | ?????????????????????????????????????????????????? | | ?????????????????????????????????????????????????? | | ?????????????????????????????????????????????????? | +----------------------------------------------------+ Best States ------------- Heat Dissipation 25 Energy Generation 14 Energy Capacity 280 Matter Stores 300 Matter Capacity 300 Sight Range 16 Robot Scan Range 20 Terrain Scan Range 14 Terrain Scan Density 10 Evasion (%) 55 Recoil Reduction 2 Item Schematics ----------------- None Robot Schematics ------------------ None Fabricated ------------ Nothing Alien Tech Used ----------------- None Achievements -------------- None Challenges ------------ None Game ------ Seed ChargeSubdwellerScreen Manual? 0 Play Time 00:11:43 Cumulative 22.6 hours Start 2024.04.06 @ 00:38:27 End 2024.04.06 @ 00:49:50 Sessions 1 Manual Loads 0 Difficulty Rogue Special Mode None Game No. 53 Rogue 50 Adventurer 3 Explorer 0 Win Type - Total 0 Types 0/0/0/0/0/0/0/0/0 Lore% 25 Gallery% 32 Achievement% 28 Wizard Run 0 Options --------- Layout 1 ASCII 0 Keyboard 0 Movement Mouse Keybinds 0 Fullscreen 1 Font 32/SmallcapsGlow Map View 77x35 Zoom Use 0% Tactical HUD 1 Map Filters NONE Filters NONE Steam 1 RUN: e536658e-2f7b-4073-8d93-507a000d8864